{"text_format":"3","workbook":"xlsx","n_sheets":7,"sheets":["Q1","Q2","Q3","Q4","Q5","Q6"," Q7 and Q8"],"read":"whole","date_system":"1900"}

{"sheet":"Q1","index":0,"n_rows":24,"n_cols":18,"rows_kept":24,"merged":[[10,0,12,0],[10,1,10,16],[10,17,12,17],[11,1,11,3],[11,4,12,4],[11,5,11,7],[11,8,12,8],[11,9,11,11],[11,12,12,12],[11,13,11,15],[11,16,12,16]]}
["FOIR-427540396 - Youth Homelessness "]
[]
["Within your authority in 2021-2022, how many 16-24 year olds: "]
["1) Presented themselves as homeless, or at risk of homelessness, as a main applicant"]
["This does not include general housing advice. By presenting we mean all who presented themselves as homeless even if they were not subsequently assessed, for example:"]
["a. Presented before 56 days of becoming as homeless, or at risk of homelessness"]
["b. Believed they were homeless but did not meet requirements"]
["c. Presented but were not eligible for homelessness assistance"]
[]
[]
["Assessment of circumstances and needs (Main Applicant only)","2021/22",{"$nulls":15},"Grand Total"]
[null,"Q1",null,null,"Qtr1 Total","Qtr2",null,null,"Qtr2 Total","Qtr3",null,null,"Qtr3 Total","Qtr4",null,null,"Qtr4 Total"]
[null,"Female","Male","Not Known / Other",null,"Female","Male","Not Known / Other",null,"Female","Male","Not Known / Other",null,"Female","Male","Not Known / Other"]
["16/17",6,6,1,13,1,3,0,4,1,1,0,2,3,4,0,7,{"$f":"SUM(E14,I14,M14,Q14)","v":26}]
["Already homeless – Relief Duty owed (include accepted local connection referrals)",1,0,0,1,0,2,0,2,0,0,0,0,0,3,0,3,6]
["Not threatened with homelessness within 56 days",2,0,1,3,0,0,0,0,0,0,0,0,0,0,0,0,3]
["Threatened with homelessness – Prevention Duty owed",3,6,0,9,1,1,0,2,1,1,0,2,3,1,0,4,17]
["18-24",35,22,null,57,31,18,0,49,29,28,0,57,37,27,0,64,{"$f":"SUM(E18,I18,M18,Q18)","v":227}]
["Already homeless – Relief Duty owed (include accepted local connection referrals)",16,14,0,30,18,11,0,29,17,22,0,39,23,23,0,46,{"$f":"SUM(E19,I19,M19,Q19)","v":144}]
["Not threatened with homelessness within 56 days",0,0,0,0,3,0,0,3,0,0,0,0,0,0,0,0,3]
["Threatened with homelessness – Prevention Duty owed",17,8,0,25,10,7,0,17,10,6,0,16,11,4,0,15,73]
["Threatened with homelessness due to service of valid Section 21 Notice – Prevention Duty owed",1,0,0,1,0,0,0,0,2,0,0,2,3,0,0,3,6]
["Withdrew application before assessment",1,0,0,1,0,0,0,0,0,0,0,0,0,0,0,0,1]
["Grand Total",41,28,1,70,32,21,0,53,30,29,0,59,40,31,0,71,253]

{"sheet":"Q2","index":1,"n_rows":20,"n_cols":18,"rows_kept":20,"merged":[[5,0,7,0],[5,1,5,16],[5,17,7,17],[6,1,6,3],[6,4,7,4],[6,5,6,7],[6,8,7,8],[6,9,6,11],[6,12,7,12],[6,13,6,15],[6,16,7,16]]}
["2) Were included as part of any household presenting as homeless or at risk of homelessness, including as main applicant"]
["This would include either or both members of a couple aged 16-24, or any children or other adults aged 16-24 included as part of a family. "]
[]
[]
[]
["Assessment of circumstances and needs ","2021/2022",{"$nulls":15},"Grand Total"]
[null,"Qtr1",null,null,"Qtr1 Total","Qtr2",null,null,"Qtr2 Total","Qtr3",null,null,"Qtr3 Total","Qtr4",null,null,"Qtr4 Total"]
[null,"Female","Male","Not Known / Other",null,"Female","Male","Not Known / Other",null,"Female","Male","Not Known / Other",null,"Female","Male","Not Known / Other"]
["16/17",9,10,12,20,6,10,0,16,4,4,0,8,7,13,0,20,{"$f":"SUM(E9,I9,M9,Q9)","v":64}]
["Already homeless – Relief Duty owed (include accepted local connection referrals)",3,0,0,3,0,4,0,4,2,2,0,4,2,6,0,8,{"$f":"SUM(E10,I10,M10,Q10)","v":19}]
["Not threatened with homelessness within 56 days",2,0,1,3,0,0,0,0,0,0,0,0,0,0,0,0,3]
["Threatened with homelessness – Prevention Duty owed",3,7,0,10,3,1,0,4,2,2,0,4,4,3,0,7,25]
["Threatened with homelessness due to service of valid Section 21 Notice – Prevention Duty owed",1,3,0,4,3,5,0,8,0,0,0,0,1,4,0,5,17]
["18-24",41,29,45,70,35,26,0,61,41,37,0,78,49,38,1,88,297]
["Already homeless – Relief Duty owed (include accepted local connection referrals)",18,15,0,33,20,11,0,31,20,26,0,46,27,27,1,55,165]
["Not threatened with homelessness within 56 days",0,0,0,null,3,1,0,4,0,0,0,0,0,0,0,0,4]
["Threatened with homelessness – Prevention Duty owed",19,11,0,30,11,8,0,19,14,6,0,20,14,6,0,20,89]
["Threatened with homelessness due to service of valid Section 21 Notice – Prevention Duty owed",3,3,0,6,1,6,0,7,7,5,0,12,8,5,0,13,38]
["Withdrew application before assessment",1,0,0,1,0,0,0,0,0,0,0,0,0,0,0,0,1]
["Grand Total",50,39,57,90,41,36,0,77,45,41,0,86,56,51,1,108,361]

{"sheet":"Q3","index":2,"n_rows":5,"n_cols":1,"rows_kept":5}
[]
["3) Were assessed for a Prevention and/or Relief duty under part 7 of the Housing Act "]
["While this assessment is a new duty brought in by the HRA, it is a duty under part 7 of the Housing Act as amended by the HRA."]
[]
["Please see tables on 'Q1'  and 'Q2' tab."]

{"sheet":"Q4","index":3,"n_rows":17,"n_cols":6,"rows_kept":17,"merged":[[5,0,5,12],[6,0,6,13],[8,0,9,0],[8,1,8,4],[8,5,9,5]]}
[]
["4) Received an initial decision of being owed:"]
["a. Prevention duty under HRA "]
["b. Relief duty under HRA "]
[]
["(a) Please see tablea on Q1 & Q2 tabs 'Threatened with homelessness – Prevention Duty owed' and 'Threatened with homelessness due to service of valid Section 21 Notice – Prevention Duty owed'"]
["(b) Please tables on Q1 & Q2 tab.  Table below shows all households who were 'owed' a Relief duty, which includes those households in table on Q1 tab 'assessed' as 'Already homeless – Relief Duty owed' and those households who have moved from Prevention Duty stage to Relief Duty stage."]
[]
["Owed' a relief duty (main applicant only)","2021/22",{"$nulls":3},"Grand Total"]
[null,"Qtr1","Qtr2","Qtr3","Qtr4"]
["16/17",1,3,null,3,{"$f":"SUM(B11:E11)","v":7}]
["Female",1,1,null,null,{"$f":"SUM(B12:E12)","v":2}]
["Male",null,2,null,3,{"$f":"SUM(B13:E13)","v":5}]
["18-24",35,35,43,50,{"$f":"SUM(B14:E14)","v":163}]
["Female",20,22,19,27,{"$f":"SUM(B15:E15)","v":88}]
["Male",15,13,24,23,{"$f":"SUM(B16:E16)","v":75}]
["Grand Total",36,38,43,53,{"$f":"SUM(B17:E17)","v":170}]

{"sheet":"Q5","index":4,"n_rows":29,"n_cols":14,"rows_kept":29,"merged":[[6,0,8,0],[6,1,6,12],[6,13,8,13],[7,1,7,2],[7,3,8,3],[7,4,7,5],[7,6,8,6],[7,7,7,8],[7,9,8,9],[7,10,7,11],[7,12,8,12]]}
[]
["5) Prevention duty ended:"]
["a. With accommodation secured"]
["b. Leading to relief duty"]
["c. Any other reason "]
[]
["Reason Prevention duty ended (all households members who are 16-24)","2021/22",{"$nulls":11},"Grand Total"]
[null,"Qtr1",null,"Qtr1 Total","Qtr2",null,"Qtr2 Total","Qtr3",null,"Qtr3 Total","Qtr4",null,"Qtr4 Total"]
[null,"Female","Male",null,"Female","Male",null,"Female","Male",null,"Female","Male"]
["16/17",1,7,8,7,3,10,2,1,3,3,3,6,27]
["56 days or more expired and no further action",0,1,1,0,0,null,0,0,null,0,0,null,1]
["Homeless",0,1,1,2,2,4,0,0,null,1,0,1,6]
["No longer eligible",0,0,null,0,0,null,0,0,null,1,0,1,1]
["Refused suitable accommodation",0,0,null,0,0,null,0,1,1,0,0,null,1]
["Secured alternative accommodation for 12 or more months",0,0,null,1,0,1,1,0,1,0,1,1,3]
["Secured alternative accommodation for 6 months",1,5,6,1,0,1,0,0,null,1,2,3,10]
["Secured existing accommodation for 6 months",0,0,null,3,0,3,1,0,1,0,0,null,4]
["Withdrew application",0,0,null,0,1,1,0,0,null,0,0,null,1]
["18-24",17,11,28,15,12,27,20,10,30,13,9,22,107]
["56 days or more expired and no further action",5,2,7,2,2,4,3,1,4,2,1,3,18]
["Contact lost",1,3,4,2,2,4,3,2,5,3,0,3,16]
["Homeless",6,5,11,5,3,8,3,3,6,5,3,8,33]
["Secured alternative accommodation for 12 or more months",1,0,1,3,1,4,6,2,8,1,0,1,14]
["Secured alternative accommodation for 6 months",0,0,null,2,3,5,3,1,4,1,3,4,13]
["Secured existing accommodation for 12 or more months",1,0,1,1,1,2,1,1,2,0,1,1,6]
["Secured existing accommodation for 6 months",1,1,2,0,0,null,0,0,null,1,1,2,4]
["Withdrew application",0,0,null,0,0,null,1,0,1,0,0,null,1]
["Withdrew application / applicant deceased (Retired)",2,0,2,0,0,null,0,0,null,0,0,null,2]
["Grand Total",18,18,36,22,15,37,22,11,33,16,12,28,134]

{"sheet":"Q6","index":5,"n_rows":25,"n_cols":15,"rows_kept":25,"merged":[[7,0,9,0],[7,1,7,13],[7,14,9,14],[8,1,8,2],[8,3,9,3],[8,4,8,5],[8,6,9,6],[8,7,8,8],[8,9,9,9],[8,10,8,12],[8,13,9,13]]}
[]
["6) Relief ended:"]
["a. With accommodation secured"]
["b. for any other reason (not including those who progress to an assessment under the Housing Act 1996)"]
[]
[]
[]
["Reason Relief duty ended (all households members who are 16-24)","2021/22",{"$nulls":12},"Grand Total"]
[null,"Qtr1",null,"Qtr1 Total","Qtr2",null,"Qtr2 Total","Qtr3",null,"Qtr3 Total","Qtr4",null,null,"Qtr4 Total"]
[null,"Female","Male",null,"Female","Male",null,"Female","Male",null,"Female","Male","Not Known / Other"]
["16/17",3,1,4,1,3,4,2,2,4,3,5,{"$f":"M190","v":0},8,20]
["56 days elapsed",1,1,2,1,3,4,1,0,1,2,2,null,4,11]
["Contact lost",1,0,1,0,0,null,0,0,null,0,0,null,null,1]
["Local connection referral accepted by other LA",0,0,null,0,0,null,1,0,1,0,0,null,null,1]
["Secured accommodation for 12 months",0,0,null,0,0,null,0,0,null,0,3,null,3,3]
["Secured accommodation for 6 months",1,0,1,0,0,null,0,0,null,1,0,null,1,2]
["Withdrew application",0,0,null,0,0,null,0,2,2,0,0,null,null,2]
["18-24",26,19,45,16,13,29,14,15,29,34,24,1,59,162]
["56 days elapsed",16,12,28,7,10,17,13,8,21,27,20,1,48,114]
["Contact lost",1,2,3,5,0,5,0,0,null,3,2,null,5,13]
["Secured accommodation for 12 months",1,3,4,1,2,3,1,2,3,2,0,null,2,12]
["Secured accommodation for 6 months",4,1,5,2,0,2,0,2,2,2,0,null,2,11]
["Withdrew application",0,0,null,1,1,2,0,3,3,0,2,null,2,7]
["Withdrew application / applicant deceased (Retired)",4,1,5,0,0,null,0,0,null,0,0,null,null,5]
["Grand Total",29,20,49,17,16,33,16,17,33,37,29,1,67,182]

{"sheet":" Q7 and Q8","index":6,"n_rows":28,"n_cols":15,"rows_kept":28,"merged":[[2,0,2,3],[12,0,14,0],[12,1,12,13],[12,14,14,14],[13,1,13,2],[13,3,14,3],[13,4,13,5],[13,6,14,6],[13,7,13,9],[13,10,14,10],[13,11,13,12],[13,13,14,13]]}
[]
["7) Were assessed for a statutory main housing duty under part 7 of the Housing Act "]
["By this we mean- following unsuccessful prevention and/or relief outcomes, how many young people underwent a final assessment under part 7 of the Housing Act in order to assess their eligibility for a statutory main housing duty "]
["&"]
["8) Were accepted as statutorily homeless and owed a statutory main housing duty under part 6 of the Housing Act 1996"]
["After undergoing a final assessment, how many young people were accepted as statutorily homeless and offered a statutory main housing duty."]
["See 'Homeless + priority need + unintentional – s193(2) duty'"]
[]
[]
[]
[]
[]
["Decisions made (all households members who are 16-24)","2021/22",{"$nulls":12},"Grand Total"]
[null,"Qtr1",null,"Qtr1 Total","Qtr2",null,"Qtr2 Total","Qtr3",null,null,"Qtr3 Total","Qtr4",null,"Qtr4 Total"]
[null,"Female","Male",null,"Female","Male",null,"Female","Male","Not Known / Other",null,"Female","Male"]
["16/17",0,1,1,2,2,4,0,2,null,2,0,2,2,9]
["Homeless + priority need + unintentional – s193(2) duty",0,0,null,2,2,4,0,2,null,2,0,2,2,8]
["Lost contact prior to assessment",0,1,1,0,0,null,0,0,null,null,0,0,null,1]
["18-24",32,22,54,18,16,34,12,5,1,18,27,15,42,148]
["Homeless + no priority need",0,2,2,0,3,3,1,1,null,2,2,5,7,14]
["Homeless + priority need + intentionally homeless",0,0,null,1,1,2,0,0,null,null,1,0,1,3]
["Homeless + priority need + unintentional – refused to cooperate (s193c(4) duty owed)",1,0,1,0,0,null,0,0,null,null,0,0,null,1]
["Homeless + priority need + unintentional – s193(2) duty",18,7,25,12,7,19,6,1,null,7,17,6,23,74]
["Lost contact prior to assessment",4,11,15,3,5,8,2,1,1,4,4,2,6,33]
["Not eligible for assistance",0,0,null,0,0,null,0,0,null,null,1,0,1,1]
["Not homeless",4,1,5,2,0,2,2,2,null,4,2,1,3,14]
["Withdrew prior to assessment",5,1,6,0,0,null,1,0,null,1,0,1,1,8]
["Grand Total",32,23,55,20,18,38,12,7,1,20,27,17,44,157]